fUST/lending_fUST_20250519
["ID","MTS","AMOUNT","RATE_DAILY","PERIOD"]
[361541923,1747603844088,-873.9401,0.00017774,2]
[361541924,1747603844097,-873.9401,0.00017774,2]
[361541926,1747603844106,-323.46564443,0.00017781,2]
[361541929,1747603844116,-5000.0,0.00017797,2]
[361541931,1747603844125,-323.46564443,0.00017863,2]
[361541933,1747603844135,-12219.34824052,0.00017934,2]
[361541935,1747603844144,-323.46564443,0.00017945,2]
[361541937,1747603844153,-1000.0,0.00017975,2]
[361541939,1747603844163,-286.4936627,0.00017975,2]
[361541941,1747603844173,-1000.0,0.00017975,2]
[361541942,1747603844184,-500.0,0.00017975,2]
[361541945,1747603844193,-2013.3,0.00018,2]
[361541947,1747603844203,-1000.0,0.00018,18]
[361541948,1747603844212,-281.098932,0.00018,2]
[361541951,1747603844222,-281.098932,0.00018,2]
[361541952,1747603844232,-1000.0,0.00018,3]
[361541954,1747603844242,-357.717621,0.00018,30]
[361541957,1747603844252,-1000.0,0.00018012,2]
[361541958,1747603844262,-699.41977507,0.00018012,2]
[361541960,1747603844271,-1000.0,0.00018012,2]
[361541962,1747603844281,-823.0,0.00018027,2]
[361541965,1747603844290,-323.46564443,0.00018027,2]
[361541967,1747603844299,-323.46564443,0.0001811,2]
[361541968,1747603844309,-12219.34824052,0.00018314,2]
[361541971,1747603844318,-2200.0,0.00018332,2]
[361541973,1747603844327,-153.0,0.00018466,2]
[361541975,1747603844336,-153.0,0.00018466,2]
[361541977,1747603844345,-153.0,0.00018466,2]
[361541978,1747603844355,-153.0,0.00018466,2]
[361541980,1747603844364,-153.0,0.00018466,2]
[361541982,1747603844373,-306.0,0.00018466,2]
[361541985,1747603844383,-2000.0,0.000185,2]
[361541987,1747603844392,-1000.0,0.000185,5]
[361541989,1747603844401,-1500.0,0.00018523,2]
[361541991,1747603844410,-500.0,0.00018523,2]
[361541993,1747603844420,-2900.0,0.00018536,2]
[361541995,1747603844429,-500.0,0.00018538,2]
[361541997,1747603844438,-160.0,0.00018554,3]
[361541999,1747603844447,-1500.0,0.0001856,2]
[361542001,1747603844456,-1500.0,0.0001856,2]
[361542003,1747603844465,-500.0,0.00018692,2]
[361542005,1747603844475,-500.0,0.00018692,2]
[361542007,1747603844484,-500.0,0.00018692,2]
[361542009,1747603844493,-500.0,0.00018692,2]
[361542011,1747603844502,-500.0,0.00018692,2]
[361542013,1747603844511,-500.0,0.00018692,2]
[361542015,1747603844523,-500.0,0.00018692,2]
[361542017,1747603844532,-500.0,0.00018692,2]
[361542019,1747603844541,-500.0,0.00018692,2]
[361542021,1747603844550,-500.0,0.00018692,2]
[361542023,1747603844559,-500.0,0.00018692,2]
[361542025,1747603844569,-202.93138722,0.00018692,2]
[361542027,1747603844578,-500.0,0.00018692,2]
[361542029,1747603844587,-193.6340302,0.00018692,2]
[361542031,1747603844597,-500.0,0.00018692,2]
[361542033,1747603844606,-500.0,0.00018692,2]
[361542035,1747603844615,-343.22866718,0.00018692,2]
[361542037,1747603844624,-500.0,0.00018692,2]
[361542039,1747603844634,-500.0,0.00018692,2]
[361542041,1747603844643,-500.0,0.00018692,2]
[361542043,1747603844653,-873.9401,0.00018693,2]
[361542045,1747603844662,-873.9401,0.00018693,2]
[361542047,1747603844672,-12219.34824052,0.00018693,2]
[361542049,1747603844681,-5081.74302528,0.000187,4]
[361542051,1747603844691,-500.0,0.00018805,2]
[361542053,1747603844700,-358.57855601,0.0001886,2]
[361542055,1747603844709,-151.0,0.000189,2]
[361542057,1747603844719,-3067.27358647,0.000189,2]
[361542059,1747603844730,-500.0,0.00018973,2]
[361542061,1747603844739,-500.0,0.00018973,2]
[361542063,1747603844748,-500.0,0.00018973,2]
[361542065,1747603844757,-500.0,0.00018973,2]
[361542067,1747603844766,-500.0,0.00018973,2]
[361542069,1747603844775,-41103.38980375,0.00019,20]
[361542071,1747603844785,-1000.0,0.00019,2]
[361542073,1747603844794,-122658.75026181,0.00019,2]
[361542075,1747603844803,-26138.07353563,0.00019,7]
[361542077,1747603844813,-2000.0,0.00019,2]
[361542079,1747603844822,-59816.02716607,0.00019,2]
[361542081,1747603844831,-5118.0,0.00019,2]
[361542083,1747603844841,-5118.0,0.00019,2]
[361542085,1747603844850,-281.098932,0.00019,2]
[361542087,1747603844859,-281.098932,0.00019,2]
[361542089,1747603844868,-1000.0,0.00019,4]
[361542091,1747603844877,-151.0,0.00019,2]
[361542093,1747603844886,-151.0,0.00019,2]
[361542095,1747603844896,-212.32903618,0.00019,7]
[361542097,1747603844906,-998.55070715,0.00019,7]
[361542099,1747603844915,-12636.50182523,0.00019,7]
[361542101,1747603844924,-873.9401,0.00019,2]
[361542103,1747603844933,-873.9401,0.00019,2]
[361542105,1747603844943,-873.9401,0.00019,2]
[361542107,1747603844952,-873.9401,0.00019,2]
[361542109,1747603844961,-873.9401,0.00019,2]
[361542111,1747603844970,-873.9401,0.00019,2]
[361542113,1747603844981,-159.9212359,0.00019048,2]
[361542115,1747603844990,-153.0,0.00019048,2]
[361542117,1747603844999,-153.0,0.00019048,2]
[361542119,1747603845008,-153.0,0.00019048,2]
[361542121,1747603845018,-153.0,0.00019048,2]
[361542124,1747603845028,-153.0,0.00019048,2]
[361542126,1747603845039,-2000.0,0.00019071,2]
[361542128,1747603845050,-12219.34824052,0.00019072,2]
[361542130,1747603845059,-2000.0,0.00019108,2]
[361542132,1747603845069,-2000.0,0.00019108,2]
[361542134,1747603845078,-450.0,0.00019178,2]
[361542136,1747603845087,-450.00728131,0.00019178,2]
[361542138,1747603845096,-500.0,0.00019178,2]
[361542140,1747603845105,-500.0,0.00019178,2]
[361542142,1747603845114,-500.0,0.00019178,2]
[361542144,1747603845125,-500.0,0.00019178,2]
[361542146,1747603845134,-500.0,0.00019178,2]
[361542148,1747603845143,-500.0,0.00019178,2]
[361542150,1747603845153,-500.0,0.00019178,2]
[361542152,1747603845164,-500.0,0.00019178,2]
[361542154,1747603845173,-500.0,0.00019178,2]
[361542156,1747603845182,-500.0,0.00019178,2]
[361542158,1747603845191,-500.0,0.00019178,2]
[361542160,1747603845200,-500.0,0.00019178,2]
[361542162,1747603845209,-500.0,0.00019178,2]
[361542164,1747603845218,-500.0,0.00019178,2]
[361542166,1747603845228,-500.0,0.00019178,2]
[361542168,1747603845237,-500.0,0.00019178,2]
[361542170,1747603845246,-500.0,0.00019178,2]
[361542172,1747603845256,-500.0,0.00019178,2]
[361542174,1747603845266,-500.0,0.00019178,2]
[361542176,1747603845276,-511.82053472,0.00019178,2]
[361542178,1747603845286,-155.0,0.00019178,2]
[361542180,1747603845295,-575.281432,0.00019178,2]
[361542182,1747603845305,-2872.37,0.000192,2]
[361542184,1747603845314,-213.6678568,0.00019397,2]
[361542186,1747603845324,-206.0,0.0001941,2]
[361542188,1747603845333,-12219.34824052,0.00019452,2]
[361542190,1747603845341,-151.0,0.00019452,2]
[361542192,1747603845350,-873.9401,0.00019452,2]
[361542194,1747603845360,-873.9401,0.00019452,2]
[361542196,1747603845369,-160.0,0.00019456,4]
[361542198,1747603845378,-1000.0,0.000195,6]
[361542200,1747603845387,-1000.0,0.00019521,2]
[361542202,1747603845396,-535.71676038,0.00019521,2]
[361542204,1747603845405,-1000.0,0.00019521,2]
[361542206,1747603845414,-1000.0,0.00019521,2]
[361542208,1747603845423,-3303.97265687,0.0001958,2]
[361542210,1747603845432,-281.098932,0.0001958,2]
[361542212,1747603845441,-281.098932,0.0001958,2]
[361542214,1747603845450,-153.0,0.00019596,2]
[361542216,1747603845459,-153.0,0.00019596,2]
[361542218,1747603845468,-355.0258361,0.00019596,2]
[361542220,1747603845478,-1500.0,0.00019618,2]
[361542222,1747603845487,-2900.0,0.00019632,2]
[361542224,1747603845496,-1000.0,0.00019656,2]
[361542226,1747603845505,-157.767924,0.00019675,7]
[361542228,1747603845514,-160.00706,0.00019675,7]
[361542230,1747603845526,-1152.0,0.00019756,2]
[361542232,1747603845534,-73394.72538326,0.000198,2]
[361542234,1747603845543,-206.0,0.0001981,2]
[361542236,1747603845552,-12219.34824052,0.00019831,2]
[361542238,1747603845561,-155.4835268,0.0001987,2]
[361542240,1747603845571,-153.0,0.0001987,2]
[361542242,1747603845579,-153.0,0.0001987,2]
[361542258,1747603845712,-153.0,0.0001987,2]
[361542260,1747603845723,-250.96,0.00019888,2]
[361542262,1747603845733,-157.767924,0.000199,7]
[361542264,1747603845742,-160.00706,0.000199,7]
[361542266,1747603845751,-165.96162361,0.000199,2]
[361542268,1747603845761,-1582.048135,0.0001996,5]
[361542270,1747603845770,-1000.0,0.0001998,5]
[361542272,1747603845779,-2000.0,0.0002,2]
[361542274,1747603845788,-5000.0,0.0002,2]
[361542276,1747603845798,-5003.81693408,0.0002,2]
[361542278,1747603845807,-10512.0,0.0002,2]
[361542280,1747603845816,-66028.0,0.0002,2]
[361542282,1747603845826,-2500.0,0.0002,2]
[361542284,1747603845836,-2500.0,0.0002,3]
[361542286,1747603845846,-2000.0,0.0002,2]
[361542288,1747603845855,-50282.02735632,0.0002,20]
[361542290,1747603845865,-9034.72424477,0.0002,2]
[361542292,1747603845874,-1000.0,0.0002,20]
[361542294,1747603845883,-204.75,0.0002,2]
[361542296,1747603845893,-281.098932,0.0002,2]
[361542299,1747603845903,-281.098932,0.0002,2]
[361542301,1747603845913,-157.767924,0.0002,5]
[361542303,1747603845922,-157.767924,0.0002,5]
[361542305,1747603845932,-160.00706,0.0002,5]
[361542307,1747603845942,-157.767924,0.0002,20]
[361542309,1747603845952,-160.00706,0.0002,5]
[361542311,1747603845961,-160.00706,0.0002,20]
[361542313,1747603845970,-157.85,0.0002,2]
[361542315,1747603845981,-200.0,0.0002,7]
[361542317,1747603845990,-200.0,0.0002,7]
[361542320,1747603845999,-1000.0,0.0002,5]
[361542322,1747603846008,-1000.0,0.0002,5]
[361542324,1747603846017,-151.0,0.0002,2]
[361542326,1747603846027,-151.0,0.0002,2]
[361542328,1747603846036,-151.0,0.0002,2]
[361542330,1747603846045,-212.32903618,0.0002,3]
[361542332,1747603846055,-151.53182002,0.0002,2]
[361542334,1747603846064,-250.0,0.0002,30]
[361542336,1747603846073,-998.55070715,0.0002,3]
[361542338,1747603846082,-12636.50182523,0.0002,3]
[361542340,1747603846091,-873.9401,0.0002,2]
[361542342,1747603846101,-873.9401,0.0002,2]
[361542344,1747603846110,-873.9401,0.0002,2]
[361542346,1747603846119,-873.9401,0.0002,2]
[361542348,1747603846128,-873.9401,0.0002,2]
[361542350,1747603846138,-873.9401,0.0002,2]
[361542351,1747603846147,-160.0,0.0002,3]
[361542352,1747603846156,-160.0,0.0002,7]
[361542353,1747603846165,-4000.0,0.0002,4]
[361542354,1747603846174,-300.0,0.0002,2]
[361542355,1747603846184,-1000.0,0.0002,2]
[361542356,1747603846193,-500.0,0.0002,2]
[361542357,1747603846202,-945.03127695,0.0002,2]
[361542358,1747603846211,-500.0,0.0002,2]
[361542359,1747603846220,-500.0,0.0002,2]
[361542360,1747603846229,-601.19952198,0.0002,2]
[361542361,1747603846239,-500.0,0.0002,2]
[361542362,1747603846248,-500.0,0.0002,2]
[361542363,1747603846257,-500.0,0.0002,2]
[361542364,1747603846266,-1800.0,0.0002,2]
[361542365,1747603846276,-500.0,0.0002,2]
[361542366,1747603846285,-1800.0,0.0002,2]
[361542367,1747603846293,-1800.0,0.0002,2]
[361542368,1747603846303,-1800.0,0.0002,2]
[361542369,1747603846312,-500.0,0.0002,2]
[361542370,1747603846321,-1800.0,0.0002,2]
[361542371,1747603846331,-500.0,0.0002,2]
[361542372,1747603846340,-1800.0,0.0002,2]
[361542373,1747603846349,-600.0,0.0002,2]
[361542374,1747603846361,-500.0,0.0002,2]
[361542375,1747603846370,-1800.0,0.0002,2]
[361542377,1747603846379,-600.0,0.0002,2]
[361542379,1747603846388,-500.0,0.0002,2]
[361542381,1747603846398,-1800.0,0.0002,2]
[361542383,1747603846408,-600.0,0.0002,2]
[361542384,1747603846417,-500.0,0.0002,2]
[361542386,1747603846427,-1800.0,0.0002,2]
[361542389,1747603846436,-600.0,0.0002,2]
[361542390,1747603846446,-500.0,0.0002,2]
[361542392,1747603846455,-1800.0,0.0002,2]
[361542395,1747603846464,-600.0,0.0002,2]
[361542396,1747603846475,-900.51650387,0.0002,2]
[361542398,1747603846484,-1800.0,0.0002,2]
[361542401,1747603846494,-600.0,0.0002,2]
[361542403,1747603846503,-1800.0,0.0002,2]
[361542405,1747603846515,-600.0,0.0002,2]
[361542406,1747603846525,-1800.0,0.0002,2]
[361542408,1747603846535,-600.0,0.0002,2]
[361542411,1747603846545,-2736.59192418,0.0002,2]
[361542412,1747603846555,-600.0,0.0002,2]
[361542415,1747603846565,-600.0,0.0002,2]
[361542417,1747603846575,-600.0,0.0002,2]
[361542418,1747603846584,-600.0,0.0002,2]
[361542420,1747603846595,-600.0,0.0002,2]
[361542422,1747603846604,-1100.0,0.0002,2]
[361542424,1747603846613,-500.0,0.0002,2]
[361542426,1747603846622,-500.0,0.0002,2]
[361542428,1747603846632,-500.0,0.0002,2]
[361542430,1747603846641,-700.0,0.0002,2]
[361542432,1747603846651,-534.69363094,0.0002,2]
[361542434,1747603846661,-500.0,0.0002,2]
[361542436,1747603846670,-500.0,0.0002,2]
[361542438,1747603846680,-634.7605674,0.0002,2]
[361542440,1747603846689,-500.0,0.0002,2]
[361542442,1747603846699,-1500.0,0.00020068,2]
[361542444,1747603846708,-1500.0,0.00020068,2]
[361542446,1747603846718,-1500.0,0.00020068,2]
[361542448,1747603846728,-818.103104,0.00020187,2]
[361542450,1747603846737,-206.0,0.0002021,2]
[361542452,1747603846748,-12219.34824052,0.0002021,2]
[361542454,1747603846758,-157.767924,0.00020244,4]
[361542456,1747603846767,-160.00706,0.00020244,4]
[361542458,1747603846777,-160.0,0.00020358,5]
[361542460,1747603846786,-404.0,0.0002037,2]
[361542462,1747603846796,-546.0,0.0002037,2]
[361542464,1747603846805,-358.57855601,0.00020502,2]
[361542466,1747603846815,-151.0,0.00020548,2]
[361542468,1747603846823,-151.669247,0.00020548,2]
[361542470,1747603846833,-12219.34824052,0.0002059,3]
[361542472,1747603846842,-206.0,0.000206,2]
[361542474,1747603846852,-207.0,0.000206,2]
[361542476,1747603846861,-157.767924,0.000206,4]
[361542478,1747603846871,-160.00706,0.000206,4]
[361542480,1747603846880,-151.0,0.000206,2]
[361542482,1747603846889,-11509.90453671,0.0002061,2]
[361542484,1747603846898,-281.098932,0.0002061,2]
[361542486,1747603846907,-281.098932,0.0002061,2]
[361542488,1747603846917,-200.0,0.0002061,7]
[361542490,1747603846926,-200.0,0.0002061,7]
[361542492,1747603846935,-873.9401,0.0002061,2]
[361542494,1747603846945,-873.940106,0.0002061,2]
[361542496,1747603846954,-2000.0,0.00020616,2]
[361542498,1747603846964,-2139.71498021,0.00020616,2]
[361542500,1747603846974,-2000.0,0.00020616,2]
[361542502,1747603846983,-153.0,0.00020692,2]
[361542504,1747603846993,-153.0,0.00020692,2]
[361542506,1747603847002,-157.85,0.00020692,2]
[361542508,1747603847011,-1875.35,0.0002071,20]
[361542510,1747603847021,-2900.0,0.00020728,2]
[361542512,1747603847030,-1092.12,0.000208,5]
[361542514,1747603847039,-9820.91411371,0.000209,2]
[361542516,1747603847048,-12219.34824052,0.00020969,4]
[361542518,1747603847057,-500.0,0.00020973,2]
[361542520,1747603847066,-513.71834774,0.00020973,2]
[361542522,1747603847075,-500.0,0.00020973,2]
[361542524,1747603847085,-500.0,0.00020973,2]
[361542526,1747603847094,-500.0,0.00020973,2]
[361542528,1747603847103,-500.0,0.00020973,2]
[361542530,1747603847112,-500.0,0.00020973,2]
[361542532,1747603847122,-500.0,0.00020973,2]
[361542534,1747603847131,-500.0,0.00020973,2]
[361542536,1747603847140,-500.0,0.00020973,2]
[361542538,1747603847150,-500.0,0.00020973,2]
[361542540,1747603847159,-500.0,0.00020973,2]
[361542542,1747603847168,-500.0,0.00020973,2]
[361542544,1747603847178,-500.0,0.00020973,2]
[361542546,1747603847188,-500.0,0.00020973,2]
[361542548,1747603847198,-500.403242,0.00020973,2]
[361542550,1747603847207,-438.54103846,0.00020973,2]
[361542552,1747603847217,-500.0,0.00020973,2]
[361542554,1747603847226,-500.0,0.00020973,2]
[361542556,1747603847235,-500.0,0.00020973,2]
[361542558,1747603847244,-500.0,0.00020973,2]
[361542560,1747603847254,-408.72366587,0.00020973,2]
[361542562,1747603847263,-500.0,0.00020973,2]
[361542564,1747603847272,-500.0,0.00020973,2]
[361542566,1747603847282,-500.0,0.00020973,2]
[361542568,1747603847291,-500.0,0.00020973,2]
[361542570,1747603847301,-600.0,0.00020973,2]
[361542572,1747603847310,-500.0,0.00020973,2]
[361542574,1747603847319,-500.0,0.00020973,2]
[361542576,1747603847329,-500.20750319,0.00020973,2]
[361542578,1747603847339,-170.99073201,0.00020973,2]
[361542580,1747603847349,-501.05457828,0.00020973,2]
[361542582,1747603847359,-500.0,0.00020973,2]
[361542584,1747603847368,-500.0,0.00020973,2]
[361542585,1747603847378,-500.0,0.00020973,2]
[361542588,1747603847388,-500.0,0.00020973,2]
[361542590,1747603847397,-271.65523418,0.00020973,2]
[361542592,1747603847407,-500.0,0.00020973,2]
[361542593,1747603847416,-500.0,0.00020973,2]
[361542596,1747603847425,-500.0,0.00020973,2]
[361542598,1747603847435,-500.72765544,0.00020973,2]
[361542599,1747603847444,-500.0,0.00020973,2]
[361542602,1747603847454,-500.0,0.00020973,2]
[361542604,1747603847463,-500.0,0.00020973,2]
[361542605,1747603847473,-152.11995464,0.00020973,2]
[361542608,1747603847483,-500.0,0.00020973,2]
[361542610,1747603847492,-500.0,0.00020973,2]
[361542612,1747603847502,-500.0,0.00020973,2]
[361542614,1747603847512,-500.0,0.00020973,2]
[361542616,1747603847522,-26824.73676113,0.00020998,3]
[361542618,1747603847538,-659.2907214,0.00020998,3]
[361542629,1747603847627,-10958.01655461,0.00020998,3]
[361543336,1747604576243,-298.7548373,0.00010522,2]
[361543337,1747604578488,-201.2451627,0.00010522,2]
[361543384,1747605032822,-900.0,0.00013156,2]
[361543385,1747605032832,-261.2638673,0.0001342,2]
[361543386,1747605032841,-300.0,0.00013696,2]
[361543387,1747605032850,-300.0,0.00013697,2]
[361543389,1747605032859,-102.71930414,0.00013697,2]
[361543391,1747605032871,-197.28069586,0.00013697,2]
[361543393,1747605032880,-300.0,0.00013697,2]
[361543395,1747605032889,-1200.0,0.00013697,2]
[361543397,1747605032899,-450.0,0.00013698,2]
[361543399,1747605032908,-450.0,0.00013698,2]
[361543401,1747605032917,-302.85,0.00013698,2]
[361543403,1747605032926,-450.0,0.00013698,2]
[361543406,1747605032936,-450.0,0.00013698,2]
[361543408,1747605032946,-450.0,0.00013698,2]
[361543410,1747605032955,-450.0,0.00013698,2]
[361543412,1747605032965,-180.07703193,0.00013698,2]
[361543420,1747605033121,-450.0,0.00013698,2]
[361543421,1747605033131,-450.0,0.00013698,2]
[361543422,1747605033140,-450.0,0.00013698,2]
[361543423,1747605033150,-389.66,0.00013698,2]
[361543424,1747605033159,-450.0,0.00013698,2]
[361543425,1747605033168,-450.0,0.00013698,2]
[361543426,1747605033178,-450.0,0.00013698,2]
[361543427,1747605033187,-450.0,0.00013698,2]
[361543428,1747605033196,-450.0,0.00013698,2]
[361543429,1747605033205,-450.0,0.00013698,2]
[361543430,1747605033214,-450.0,0.00013698,2]
[361543431,1747605033223,-450.0,0.00013698,2]
[361543432,1747605033233,-736.292793,0.00013699,2]
[361543433,1747605033242,-567.69,0.00013835,2]
[361543434,1747605033251,-327.55,0.00013835,2]
[361543435,1747605033260,-589.9351714,0.00013835,2]
[361543436,1747605033270,-450.0,0.00013835,2]
[361543437,1747605033279,-450.0,0.00013972,2]
[361543438,1747605033288,-366.38,0.00014109,2]
[361543439,1747605033297,-796.22844349,0.000149,2]
[361543440,1747605033309,-446.61247371,0.000149,2]
[361543441,1747605033341,-4052.20998718,0.000149,2]
[361543442,1747605033350,-160.0,0.00014954,2]
[361543443,1747605033359,-160.0,0.00014954,2]
[361543444,1747605033368,-160.0,0.00014954,2]
[361543445,1747605033378,-160.0,0.00014962,2]
[361543446,1747605033387,-4056.76685172,0.00014962,2]
[361543447,1747605033399,-8579.73497351,0.00014962,2]
[361543448,1747605033408,-160.0,0.00014962,2]
[361543449,1747605033417,-998.55070715,0.00014962,2]
[361543450,1747605033427,-422.53311782,0.00014962,2]
[361543451,1747605033437,-212.32903618,0.00014962,2]
[361543452,1747605033446,-151.0,0.00014993,2]
[361543453,1747605033455,-420.0,0.0001501,2]
[361543454,1747605033464,-11147.3638554,0.00015018,2]
[361543455,1747605033473,-546.0,0.00015098,2]
[361543456,1747605033482,-707.0,0.00015098,2]
[361543457,1747605033491,-2235.0,0.00015098,2]
[361543458,1747605033500,-404.0,0.00015098,2]
[361543459,1747605033509,-500.0,0.00015098,2]
[361543460,1747605033518,-5295.05090422,0.00015279,2]
[361543461,1747605033527,-500.0,0.00015467,2]
[361543462,1747605033536,-501.31626111,0.00015467,2]
[361543463,1747605033546,-152.4554076,0.00015655,2]
[361543464,1747605033555,-500.0,0.00015656,2]
[361543465,1747605033564,-500.0,0.00015656,2]
[361543466,1747605033574,-5295.05090422,0.00015659,2]
[361543467,1747605033583,-500.0,0.00015782,2]
[361543468,1747605033592,-500.0,0.00015782,2]
[361543469,1747605033601,-500.0,0.00015782,2]
[361543470,1747605033611,-5295.05090422,0.00016038,2]
[361543471,1747605033621,-500.0,0.0001633,2]
[361543472,1747605033630,-5295.05090422,0.00016417,2]
[361543473,1747605033640,-587.0,0.0001645,2]
[361543474,1747605033649,-515.399,0.00016741,2]
[361543475,1747605033659,-5295.05090422,0.00016797,2]
[361543476,1747605033668,-203.78816976,0.00016962,2]
[361543477,1747605033678,-3208.33,0.00016999,2]
[361543478,1747605033687,-3208.33,0.00016999,2]
[361543479,1747605033696,-3208.33,0.00016999,2]
[361543480,1747605033706,-3208.33,0.00016999,2]
[361543481,1747605033715,-3208.33,0.00016999,2]
[361543482,1747605033724,-3208.33,0.00016999,2]
[361543483,1747605033733,-3208.33,0.00016999,2]
[361543484,1747605033743,-3208.33,0.00016999,2]
[361543485,1747605033751,-3208.33,0.00016999,2]
[361543486,1747605033761,-3208.33,0.00016999,2]
[361543487,1747605033771,-3208.33,0.00016999,2]
[361543488,1747605033780,-3208.33,0.00016999,2]
[361543489,1747605033789,-3208.33,0.00016999,2]
[361543490,1747605033799,-3208.33,0.00016999,2]
[361543491,1747605033810,-3208.33,0.00016999,2]
[361543492,1747605033819,-3208.33,0.00016999,2]
[361543493,1747605033828,-3208.33,0.00016999,2]
[361543494,1747605033837,-3208.33,0.00016999,2]
[361543495,1747605033847,-3208.33,0.00016999,2]
[361543496,1747605033856,-3208.33,0.00016999,2]
[361543497,1747605033865,-3208.33,0.00016999,2]
[361543498,1747605033874,-3208.33,0.00016999,2]
[361543499,1747605033884,-3208.33,0.00016999,2]
[361543500,1747605033893,-3208.41,0.00016999,2]
[361543501,1747605033902,-500.0,0.00016999,2]
[361543502,1747605033911,-500.0,0.00016999,2]
[361543503,1747605033920,-5295.05090422,0.00017176,2]
[361543504,1747605033929,-5295.05090422,0.00017555,2]
[361543505,1747605033939,-5295.05090422,0.00017934,2]
[361543506,1747605033948,-500.4,0.00018,2]
[361543507,1747605033958,-500.0,0.00018,2]
[361543508,1747605033967,-500.0,0.00018,2]
[361543509,1747605033976,-500.0,0.00018,2]
[361543510,1747605033986,-500.0,0.00018,2]
[361543511,1747605033995,-500.0,0.00018,2]
[361543512,1747605034004,-500.0,0.00018,2]
[361543513,1747605034014,-406.0,0.00018027,2]
[361543514,1747605034023,-546.0,0.00018098,2]
[361543515,1747605034032,-707.0,0.00018098,2]
[361543516,1747605034041,-2235.0,0.00018098,2]
[361543517,1747605034052,-404.0,0.00018098,2]
[361543518,1747605034062,-5295.05090422,0.00018314,2]
[361543519,1747605034071,-5295.05090422,0.00018693,2]
[361543520,1747605034081,-200.44034659,0.000188,2]
[361543521,1747605034091,-2200.0,0.00018847,2]
[361543522,1747605034101,-176.627213,0.00018898,3]
[361543523,1747605034111,-2044.84905765,0.000189,2]
[361543524,1747605034120,-5295.05090422,0.00019072,2]
[361543525,1747605034130,-155.0,0.00019178,2]
[361543526,1747605034139,-460.225145,0.00019178,2]
[361543527,1747605034149,-2585.13,0.000193,2]
[361543528,1747605034158,-5295.05090422,0.00019452,2]
[361543529,1747605034168,-160.0,0.00019456,3]
[361543530,1747605034177,-2200.0,0.00019632,2]
[361543531,1747605034187,-5295.05090422,0.00019831,2]
[361543532,1747605034196,-2000.0,0.0002,2]
[361543533,1747605034205,-2000.0,0.0002,2]
[361543534,1747605034214,-300.0,0.0002,2]
[361543535,1747605034223,-500.0,0.0002,2]
[361543536,1747605034234,-175.13879906,0.0002,2]
[361543552,1747605038673,-647.97717085,0.00015497,2]
[361543848,1747605043816,-12628.46553531,0.00015497,2]
[361543850,1747605043827,-500.0,0.00015654,2]
[361543852,1747605043838,-500.0,0.00015654,2]
[361543854,1747605043848,-500.0,0.00015654,2]
[361543856,1747605043859,-500.0,0.00015654,2]
[361543858,1747605043869,-500.0,0.00015654,2]
[361543860,1747605043879,-500.0,0.00015654,2]
[361543862,1747605043889,-500.0,0.00015654,2]
[361543864,1747605043899,-556.65900152,0.00015654,2]
[361543867,1747605043909,-500.0,0.00015654,2]